[Event "34th MPL National U14G-ch 2022"]
[Site "Ahmedabad"]
[Date "2022.05.09"]
[Round "2.6"]
[White "Arushi Srichandan"]
[Black "Rajanya Datta"]
[Result "1-0"]
[ECO "C80"]
[WhiteElo "1292"]
[BlackElo "1589"]
[Annotator "NA RC COMBH"]
[PlyCount "105"]
[EventDate "2022.05.09"]
[EventType "swiss"]
[EventCountry "IND"]
[SourceTitle "playchess.com"]
[Source "ChessBase"]
[SourceQuality "1"]
[TimeControl "5400+30"]

1. e4 {[%emt 0:00:09]} e5 {[%emt 0:00:20]} 2. Nf3 {[%emt 0:00:05]} Nc6 {[%emt 0:00:08]} 3. Bb5 {[%emt 0:00:05]} a6 {[%emt 0:00:12]} 4. Ba4 {[%emt 0:00:06]} Nf6 {[%emt 0:00:11]} 5. O-O {[%emt 0:01:05]} Nxe4 {[%emt 0:00:14]} 6. Re1 {[%emt 0:00:20]} Nc5 {[%emt 0:00:13]} 7. Nxe5 {[%emt 0:00:43]} Nxe5 {[%emt 0:00:08]} 8. Rxe5+ {[%emt 0:00:08]} Ne6 {[%emt 0:01:24]} 9. d4 {[%emt 0:00:42]} Bd6 {[%emt 0:00:11]} 10. Re4 {[%emt 0:00:50]} O-O {[%emt 0:00:55]} 11. c3 {[%emt 0:01:35]} b5 {[%emt 0:02:50]} 12. Bb3 {[%emt 0:05:02]} Bb7 {[%emt 0:02:02]} 13. Re1 {[%emt 0:03:13]} Qh4 {[%emt 0:04:48]} 14. h3 {[%emt 0:03:40]} Nf4 {[%emt 0:04:27]} 15. Bxf4 {[%emt 0:01:09]} Qxf4 {[%emt 0:00:07]} 16. g3 {[%emt 0:04:27]} Qh6 {[%emt 0:02:34]} 17. Kh2 {[%emt 0:06:09]} Qf6 {[%emt 0:09:14]} 18. Kg1 {[%emt 0:10:38]} Qh6 {[%emt 0:13:00]} 19. Kh2 {[%emt 0:00:11]} Kh8 {[%emt 0:00:10]} 20. d5 {[%emt 0:04:03]} f5 {[%emt 0:05:38]} 21. f4 {[%emt 0:02:27]} Bxf4 {[%emt 0:11:49]} 22. gxf4 {[%emt 0:01:06]} Qxf4+ {[%emt 0:00:07]} 23. Kh1 {[%emt 0:02:22]} Qg3 {[%emt 0:00:21]} 24. Qe2 {[%emt 0:00:35]} Qxh3+ {[%emt 0:08:54]} 25. Qh2 {[%emt 0:00:28]} Qd3 {[%emt 0:02:53]} 26. Qd2 {[%emt 0:01:59]} Qg3 {[%emt 0:03:22]} 27. Rg1 {[%emt 0:01:27]} Qd6 {[%emt 0:01:57]} 28. Qg2 {[%emt 0:00:47]} Qe7 {[%emt 0:02:34]} 29. Nd2 {[%emt 0:01:33]} Rf6 {[%emt 0:03:45]} 30. Rge1 {[%emt 0:00:35]} Rh6+ {[%emt 0:03:06]} 31. Kg1 {[%emt 0:00:21]} Qd6 {[%emt 0:00:15]} 32. Qe2 {[%emt 0:01:39]} Qg6+ {[%emt 0:03:34]} 33. Qg2 {[%emt 0:00:14]} Qh5 {[%emt 0:00:25]} 34. Kf2 {[%emt 0:04:22]} Rg6 {[%emt 0:04:20]} 35. Qh1 {[%emt 0:00:42]} Qg5 {[%emt 0:01:04]} 36. Re2 {[%emt 0:01:33]} Qg3+ {[%emt 0:03:31]} 37. Kf1 {[%emt 0:00:15]} c6 {[%emt 0:01:44]} 38. Rae1 {[%emt 0:05:10]} Rf8 {[%emt 0:01:26]} 39. Re8 {[%emt 0:01:26]} Qd3+ {[%emt 0:00:12]} 40. R8e2 {[%emt 0:01:11]} Rg3 {[%emt 0:01:10]} 41. Kf2 {[%emt 0:01:10]} Rh3 {[%emt 0:00:26]} 42. Qg2 {[%emt 0:00:47]} f4 {[%emt 0:00:51]} 43. Nf3 {[%emt 0:00:49]} Rg3 {[%emt 0:00:13]} 44. Qh1 {[%emt 0:00:13]} c5 {[%emt 0:00:45]} 45. Bc2 {[%emt 0:00:41]} Rxf3+ {[%emt 0:00:48]} 46. Qxf3 {[%emt 0:00:06]} Qxf3+ {[%emt 0:00:05]} 47. Kxf3 {[%emt 0:00:04]} Bxd5+ {[%emt 0:00:04]} 48. Kf2 {[%emt 0:00:29]} Bxa2 {[%emt 0:00:17]} 49. Re8 {[%emt 0:00:04]} Kg8 {[%emt 0:00:43]} 50. Bxh7+ {[%emt 0:00:07]} Kf7 {[%emt 0:00:03]} 51. Bg6+ {[%emt 0:00:10]} Kg8 {[%emt 0:00:03]} 52. Rxf8+ {[%emt 0:37:18]} Kxf8 {[%emt 0:00:03]} 53. Re8# {[%emt 0:00:30]} 1-0

[Event "34th MPL National U14G-ch 2022"]
[Site "Ahmedabad"]
[Date "2022.05.09"]
[Round "2.7"]
[White "Dakshita Kumawat"]
[Black "Lakshanaa R"]
[Result "1/2-1/2"]
[ECO "D02"]
[WhiteElo "1575"]
[BlackElo "1290"]
[Annotator "NA RC COMBH"]
[PlyCount "68"]
[EventDate "2022.05.09"]
[EventType "swiss"]
[EventCountry "IND"]
[SourceTitle "playchess.com"]
[Source "ChessBase"]
[SourceQuality "1"]
[TimeControl "5400+30"]

1. d4 {[%emt 0:00:52]} Nf6 {[%emt 0:00:09]} 2. Bf4 {[%emt 0:00:04]} e6 {[%emt 0:00:06]} 3. e3 {[%emt 0:00:05]} c5 {[%emt 0:00:14]} 4. c3 {[%emt 0:00:30]} Nc6 {[%emt 0:00:25]} 5. Nf3 {[%emt 0:00:07]} d5 {[%emt 0:00:57]} 6. Nbd2 {[%emt 0:00:13]} Bd6 {[%emt 0:01:25]} 7. Bg3 {[%emt 0:00:05]} cxd4 {[%emt 0:03:14]} 8. exd4 {[%emt 0:00:07]} Qc7 {[%emt 0:01:44]} 9. Bd3 {[%emt 0:07:25]} O-O {[%emt 0:03:51]} 10. O-O {[%emt 0:02:13]} Bxg3 {[%emt 0:05:33]} 11. hxg3 {[%emt 0:00:55]} e5 {[%emt 0:01:11]} 12. dxe5 {[%emt 0:00:25]} Nxe5 {[%emt 0:00:20]} 13. Nxe5 {[%emt 0:00:36]} Qxe5 {[%emt 0:00:12]} 14. Re1 {[%emt 0:00:08]} Qd6 {[%emt 0:02:50]} 15. Qc2 {[%emt 0:02:40]} Bd7 {[%emt 0:05:40]} 16. Nf3 {[%emt 0:00:59]} h6 {[%emt 0:06:11]} 17. Nd4 {[%emt 0:04:18]} Rfe8 {[%emt 0:05:49]} 18. Qd2 {[%emt 0:03:35]} Rac8 {[%emt 0:12:25]} 19. Qf4 {[%emt 0:08:38]} Qxf4 {[%emt 0:02:52]} 20. gxf4 {[%emt 0:00:17]} Ne4 {[%emt 0:01:54]} 21. Bxe4 {[%emt 0:00:51]} dxe4 {[%emt 0:01:31]} 22. f3 {[%emt 0:01:14]} exf3 {[%emt 0:02:37]} 23. Nxf3 {[%emt 0:01:22]} Rxe1+ {[%emt 0:01:33]} 24. Rxe1 {[%emt 0:00:01]} Re8 {[%emt 0:01:15]} 25. Rxe8+ {[%emt 0:00:30]} Bxe8 {[%emt 0:00:06]} 26. c4 {[%emt 0:00:56]} Kf8 {[%emt 0:02:06]} 27. Kf2 {[%emt 0:00:27]} Ke7 {[%emt 0:00:26]} 28. Ke3 {[%emt 0:00:19]} Bc6 {[%emt 0:01:07]} 29. Ne1 {[%emt 0:00:38]} Kd6 {[%emt 0:01:33]} 30. b3 {[%emt 0:02:43]} b5 {[%emt 0:02:55]} 31. cxb5 {[%emt 0:03:07]} Bxb5 {[%emt 0:00:57]} 32. Nc2 {[%emt 0:00:33]} Kd5 {[%emt 0:03:01]} 33. Nd4 {[%emt 0:01:33]} Bd7 {[%emt 0:00:23]} 34. a3 {[%emt 0:03:16]} a5 {[%emt 0:01:33]} 1/2-1/2

[Event "34th MPL National U14G-ch 2022"]
[Site "Ahmedabad"]
[Date "2022.05.09"]
[Round "2.8"]
[White "Sneha Halder"]
[Black "Olivia Biswas"]
[Result "1-0"]
[ECO "A06"]
[WhiteElo "1557"]
[BlackElo "1288"]
[Annotator "NA RC COMBH"]
[PlyCount "70"]
[EventDate "2022.05.09"]
[EventType "swiss"]
[EventCountry "IND"]
[SourceTitle "playchess.com"]
[Source "ChessBase"]
[SourceQuality "1"]
[TimeControl "5400+30"]

1. Nf3 {[%emt 0:00:35]} Nf6 {[%emt 0:00:11]} 2. b3 {[%emt 0:00:25]} d5 {[%emt 0:00:32]} 3. Bb2 {[%emt 0:00:23]} g6 {[%emt 0:01:00]} 4. h3 {[%emt 0:02:07]} Bg7 {[%emt 0:02:35]} 5. g4 {[%emt 0:00:24]} h6 {[%emt 0:04:06]} 6. e3 {[%emt 0:02:01]} Nbd7 {[%emt 0:05:14]} 7. Nc3 {[%emt 0:01:04]} Nc5 {[%emt 0:02:06]} 8. Bg2 {[%emt 0:01:24]} c6 {[%emt 0:03:33]} 9. d3 {[%emt 0:02:02]} Qc7 {[%emt 0:02:34]} 10. Ne2 {[%emt 0:01:15]} Bd7 {[%emt 0:02:57]} 11. a4 {[%emt 0:01:23]} O-O {[%emt 0:04:25]} 12. Be5 {[%emt 0:05:40]} Qa5+ {[%emt 0:01:25]} 13. Qd2 {[%emt 0:00:23]} Qxd2+ {[%emt 0:00:31]} 14. Nxd2 {[%emt 0:02:21]} Ne8 {[%emt 0:03:03]} 15. f4 {[%emt 0:03:04]} Nd6 {[%emt 0:11:40]} 16. Bxg7 {[%emt 0:05:52]} Kxg7 {[%emt 0:00:07]} 17. e4 {[%emt 0:00:05]} dxe4 {[%emt 0:01:54]} 18. dxe4 {[%emt 0:00:21]} f5 {[%emt 0:05:39]} 19. gxf5 {[%emt 1:09:11]} gxf5 {[%emt 0:00:25]} 20. e5 {[%emt 0:00:00]} Nde4 {[%emt 0:00:44]} 21. b4 {[%emt 0:00:00]} Nxd2 {[%emt 0:01:07]} 22. Kxd2 {[%emt 0:00:00]} Ne6 {[%emt 0:02:35]} 23. Ke3 {[%emt 0:00:00]} Nc7 {[%emt 0:01:23]} 24. c4 {[%emt 0:00:00]} Be6 {[%emt 0:01:17]} 25. Rac1 {[%emt 0:00:00]} Na6 {[%emt 0:05:36]} 26. Nd4 {[%emt 0:00:00]} Kf7 {[%emt 0:02:46]} 27. Bf3 {[%emt 0:00:00]} Bd7 {[%emt 0:02:49]} 28. Rhg1 {[%emt 0:00:00]} e6 {[%emt 0:03:07]} 29. Bh5+ {[%emt 0:00:00]} Ke7 {[%emt 0:00:10]} 30. Rg7+ {[%emt 0:00:00]} Kd8 {[%emt 0:00:07]} 31. Rd1 {[%emt 0:00:00]} Kc8 {[%emt 0:01:18]} 32. Nxf5 {[%emt 0:00:00]} Rxf5 {[%emt 0:01:38]} 33. Rgxd7 {[%emt 0:00:00]} Rxh5 {[%emt 0:01:31]} 34. Rd8+ {[%emt 0:00:00]} Kc7 {[%emt 0:00:05]} 35. R1d7+ {[%emt 0:00:00]} Kb6 {[%emt 0:01:20]} 1-0

[Event "34th MPL National U14G-ch 2022"]
[Site "Ahmedabad"]
[Date "2022.05.10"]
[Round "3.1"]
[White "Mrittika Mallick"]
[Black "Sanikommu Manasvi"]
[Result "1-0"]
[ECO "B50"]
[WhiteElo "1982"]
[BlackElo "1399"]
[Annotator "TA"]
[PlyCount "105"]
[EventDate "2022.05.09"]
[EventType "swiss"]
[EventCountry "IND"]
[SourceTitle "playchess.com"]
[Source "ChessBase"]
[SourceQuality "1"]
[TimeControl "5400+30"]

{[%evp 18,105,47,25,22,0,0,0,0,-80,-85,-92,-88,-89,-96,-95,-25,-23,0,-74,-6,-9,65,50,69,62,58,0,358,364,562,415,415,415,415,415,417,399,411,338,338,335,364,361,350,330,336,301,383,369,379,372,411,397,492,485,472,457,545,550,528,528,522,507,738,569,554,554,531,527,637,634,637,622,621,587,923,923,908,874,860,779,923,844,923,909,861,788,702,619]} 1. e4 {[%emt 0:00:23]} c5 {[%emt 0:00:07]} 2. Nf3 {[%emt 0:00:13]} d6 {[%emt 0:00:09]} 3. Bb5+ {[%emt 0:00:37]} Nd7 {[%emt 0:00:13]} 4. O-O {[%emt 0:00:57]} Ngf6 {[%emt 0:01:17]} 5. Re1 {[%emt 0:02:03]} g6 {[%emt 0:02:55]} 6. c3 {[%emt 0:01:15][%cal Bc2c3,Bc3d4,Bd4e5][%mdl 32]} Bg7 {[%emt 0:03:16]} 7. d4 {[%emt 0:01:48]} cxd4 {[%emt 0:01:58]} 8. cxd4 {[%emt 0:00:18]} O-O {[%emt 0:00:56]} 9. Nc3 {[%emt 0:03:47]} a6 {[%emt 0:02:38]} 10. Bf1 {[%emt 0:04:07]} b5 {[%emt 0:05:16] B50: Sicilian: 2...d6, Miscellaneous.} 11. e5 {[%emt 0:06:04]} dxe5 {[%emt 0:08:16]} 12. dxe5 {[%emt 0:01:14]} Ng4 {[%emt 0:04:45][%cal Rd7e5] The position is equal.} 13. Qd5 {[%emt 0:08:52] [#]} (13. Bf4 $11) 13... Qb6 $146 {[%emt 0:07:55]} ({Predecessor:} 13... Rb8 14. e6 Ndf6 15. exf7+ Kh8 16. Qxd8 Rxd8 17. Rxe7 Bf8 18. Re2 Rb7 19. h3 Nh6 20. Bg5 Bg7 21. Bxf6 Bxf6 22. Re8+ Kg7 23. f8=Q# {1-0 (23) Sedina,E (2294)-Smietanska,W (1802) Chess.com INT 2021}) 14. Be3 {[%emt 0:21:59] [#]} (14. Qd2 Bb7) 14... Nxe3 {[%emt 0:04:45]} 15. Rxe3 {[%emt 0:00:54] [#]} e6 $1 {[%emt 0:08:39]} 16. Qd1 {[%emt 0:05:46]} Rd8 {[%emt 0:05:31]} (16... Qb8 $17 {[%cal Rd7e5]} 17. Qd4 Rd8) 17. Rd3 $11 {[%emt 0:02:41]} Re8 {[%emt 0:03:28]} (17... Qb8 $5 {[%cal Ra8a7]}) 18. Qe2 {[%emt 0:05:56]} (18. Rxd7 $2 Bxd7 19. Qxd7 Rad8 $19) (18. Rd6 $11 Qa7 19. Qe1) 18... Qc7 {[%emt 0:04:25]} (18... b4 $17 19. Na4 Qa5) 19. Ne4 {[%emt 0:05:02]} Bxe5 {[%emt 0:07:22]} (19... Nxe5 $11 20. Nd6 Rd8 21. Nxe5 Rxd6 22. Rxd6 Qxd6 23. Nxf7 Qe7) 20. Nxe5 $14 {[%emt 0:02:18]} Qxe5 {[%emt 0:00:51]} 21. Qf3 {[%emt 0:02:16] Inhibits Nf6. Threatens to win with Nd6. White is more active.} Ra7 {[%emt 0:03:36]} 22. Rad1 {[%emt 0:03:06]} (22. Nd6 $14 Rf8 23. Qc6) 22... Re7 $2 {[%emt 0:02:27][%mdl 8192] Black is now going downhill.} (22... Qxb2 $2 23. R3d2 Qe5 24. Nd6 $18) (22... Rf8 $11 {and Black stays safe.}) 23. Nd6 $18 {[%emt 0:02:07]} Nb6 {[%emt 0:04:45]} (23... Bb7 $142 24. Nxb7 Qc7) 24. Nxc8 {[%emt 0:00:21]} Nxc8 {[%emt 0:00:03]} 25. Rd8+ {[%emt 0:00:08][%cal Bd3d8,Bd8c8,Bc8c3,Bc3b3,Bb3b4][%mdl 32]} Kg7 {[%emt 0:00:08]} 26. Rxc8 {[%emt 0:00:09]} Rad7 {[%emt 0:00:47]} 27. Rxd7 {[%emt 0:00:27]} Rxd7 {[%emt 0:00:06]} 28. Qc3 {[%emt 0:00:04]} ({Much less strong is} 28. Qa3 Rd6 29. Ra8 g5 30. Rxa6 Rd1 $18) 28... Qxc3 {[%emt 0:00:37]} 29. Rxc3 {[%emt 0:00:09][%mdl 4096] Endgame KRB-KR} ({Don't do} 29. bxc3 Rd2 30. Ra8 Rxa2 31. Bxb5 Rc2 $18) 29... Rd2 {[%emt 0:00:07]} 30. Rb3 {[%emt 0:00:37]} e5 {[%emt 0:00:21]} 31. g3 {[%emt 0:00:07]} f5 {[%emt 0:00:15]} 32. Rb4 {[%emt 0:02:42]} g5 {[%emt 0:00:26]} 33. a4 {[%emt 0:00:29]} bxa4 {[%emt 0:00:37]} 34. Bxa6 {[%emt 0:00:06]} f4 {[%emt 0:00:13]} 35. Kg2 {[%emt 0:01:21]} h5 {[%emt 0:00:26]} 36. gxf4 {[%emt 0:00:17] White is clearly winning.} exf4 {[%emt 0:00:23]} 37. Bb5 {[%emt 0:00:40]} Kf6 {[%emt 0:00:21]} 38. Be8 {[%emt 0:01:02]} h4 {[%emt 0:00:33]} 39. Bh5 {[%emt 0:01:43]} h3+ {[%emt 0:00:28]} 40. Kf3 {[%emt 0:00:37]} Kf5 {[%emt 0:01:33]} 41. Rb5+ {[%emt 0:01:19]} Kf6 {[%emt 0:00:08]} 42. Bg4 {[%emt 0:00:13]} Rd3+ {[%emt 0:00:32]} 43. Ke2 {[%emt 0:00:13]} Rd8 {[%emt 0:00:22]} 44. Rb4 {[%emt 0:01:11]} Re8+ {[%emt 0:00:18]} 45. Kf3 {[%emt 0:00:09]} Ra8 {[%emt 0:00:20]} 46. Bxh3 {[%emt 0:00:23]} a3 {[%emt 0:00:49]} 47. bxa3 {[%emt 0:00:05]} Rxa3+ {[%emt 0:00:04]} 48. Kg2 {[%emt 0:00:06]} Kg6 {[%emt 0:00:19]} 49. Bg4 {[%emt 0:00:12]} Kf6 {[%emt 0:00:40]} 50. Rb6+ {[%emt 0:00:10]} Kg7 {[%emt 0:00:15]} 51. Bh5 {[%emt 0:00:13]} Kh7 {[%emt 0:00:36]} 52. Rg6 {[%emt 0:00:38]} f3+ {[%emt 0:00:25]} 53. Kg3 {[%emt 0:00:15] Weighted Error Value: White=0.25 (precise) /Black=0.41} 1-0

[Event "34th MPL National U14G-ch 2022"]
[Site "Ahmedabad"]
[Date "2022.05.10"]
[Round "3.2"]
[White "Anahita Verma"]
[Black "Sachi Jain"]
[Result "0-1"]
[ECO "C41"]
[WhiteElo "1407"]
[BlackElo "1768"]
[Annotator "NA RC COMBH"]
[PlyCount "60"]
[EventDate "2022.05.09"]
[EventType "swiss"]
[EventCountry "IND"]
[SourceTitle "playchess.com"]
[Source "ChessBase"]
[SourceQuality "1"]
[TimeControl "5400+30"]

1. e4 {[%emt 0:00:02]} e5 {[%emt 0:01:43]} 2. Nf3 {[%emt 0:00:05]} d6 {[%emt 0:00:49]} 3. d4 {[%emt 0:00:24]} Nd7 {[%emt 0:00:27]} 4. Nc3 {[%emt 0:00:42]} c6 {[%emt 0:00:19]} 5. dxe5 {[%emt 0:00:58]} dxe5 {[%emt 0:00:16]} 6. Be3 {[%emt 0:00:35]} Be7 {[%emt 0:00:41]} 7. Bc4 {[%emt 0:00:54]} h6 {[%emt 0:00:13]} 8. h3 {[%emt 0:01:19]} Qc7 {[%emt 0:00:36]} 9. Qd2 {[%emt 0:02:22]} Ngf6 {[%emt 0:00:39]} 10. a3 {[%emt 0:01:21]} Nf8 {[%emt 0:06:48]} 11. O-O {[%emt 0:04:47]} g5 {[%emt 0:03:44]} 12. Nh2 {[%emt 0:05:44]} Ng6 {[%emt 0:01:09]} 13. Be2 {[%emt 0:03:38]} Be6 {[%emt 0:06:00]} 14. Rad1 {[%emt 0:04:18]} Qc8 {[%emt 0:04:44]} 15. Rfe1 {[%emt 0:09:34]} Rg8 {[%emt 0:02:13]} 16. f3 {[%emt 0:10:54]} Nf4 {[%emt 0:07:30]} 17. Ng4 {[%emt 0:06:09]} Nxg4 {[%emt 0:02:43]} 18. hxg4 {[%emt 0:01:33]} h5 {[%emt 0:00:14]} 19. g3 {[%emt 0:08:20]} hxg4 {[%emt 0:10:44]} 20. fxg4 {[%emt 0:02:18]} Nxe2+ {[%emt 0:00:18]} 21. Nxe2 {[%emt 0:00:44]} Bxg4 {[%emt 0:00:02]} 22. Kf2 {[%emt 0:04:29]} Qe6 {[%emt 0:00:58]} 23. Rf1 {[%emt 0:07:45]} Rh8 {[%emt 0:06:05]} 24. Ke1 {[%emt 0:02:22]} Rh2 {[%emt 0:04:03]} 25. Rf2 {[%emt 0:05:22]} Rh1+ {[%emt 0:00:51]} 26. Rf1 {[%emt 0:00:06]} Rxf1+ {[%emt 0:00:06]} 27. Kxf1 {[%emt 0:00:05]} Qf6+ {[%emt 0:00:04]} 28. Bf2 {[%emt 0:00:28]} Bc5 {[%emt 0:01:22]} 29. Qe1 {[%emt 0:00:59]} Bh3+ {[%emt 0:00:49]} 30. Kg1 {[%emt 0:01:07]} Qf3 {[%emt 0:00:02]} 0-1

[Event "34th MPL National U14G-ch 2022"]
[Site "Ahmedabad"]
[Date "2022.05.10"]
[Round "3.3"]
[White "Bhat Sannidhi Ramakrishna"]
[Black "Anupam M Sreekumar"]
[Result "1-0"]
[ECO "D02"]
[WhiteElo "1373"]
[BlackElo "1673"]
[Annotator "NA RC COMBH"]
[PlyCount "63"]
[EventDate "2022.05.09"]
[EventType "swiss"]
[EventCountry "IND"]
[SourceTitle "playchess.com"]
[Source "ChessBase"]
[SourceQuality "1"]
[TimeControl "5400+30"]

1. d4 {[%emt 0:00:03]} d5 {[%emt 0:00:17]} 2. Bf4 {[%emt 0:00:10]} Nf6 {[%emt 0:00:58]} 3. e3 {[%emt 0:00:17]} e6 {[%emt 0:00:41]} 4. Nf3 {[%emt 0:00:49]} Be7 {[%emt 0:01:00]} 5. Nbd2 {[%emt 0:03:33]} O-O {[%emt 0:00:25]} 6. Bd3 {[%emt 0:00:50]} c5 {[%emt 0:02:26]} 7. c3 {[%emt 0:00:25]} Nc6 {[%emt 0:00:21]} 8. Ne5 {[%emt 0:10:47]} Nxe5 {[%emt 0:07:41]} 9. dxe5 {[%emt 0:00:14]} Ne8 {[%emt 0:00:50]} 10. Nf3 {[%emt 0:05:57]} b6 {[%emt 0:03:24]} 11. Qb1 {[%emt 0:05:06]} g6 {[%emt 0:02:20]} 12. h4 {[%emt 0:10:02]} Kh8 {[%emt 0:11:54]} 13. Bh6 {[%emt 0:09:52]} Rg8 {[%emt 0:13:38]} 14. Ng5 {[%emt 0:06:13]} Bxg5 {[%emt 0:03:11]} 15. Bxg5 {[%emt 0:00:12]} Qc7 {[%emt 0:01:41]} 16. h5 {[%emt 0:03:19]} Kg7 {[%emt 0:01:32]} 17. Bh6+ {[%emt 0:13:49]} Kh8 {[%emt 0:00:23]} 18. hxg6 {[%emt 0:00:24]} fxg6 {[%emt 0:00:06]} 19. Bf4 {[%emt 0:00:22]} Qf7 {[%emt 0:00:42]} 20. Qd1 {[%emt 0:03:29]} d4 {[%emt 0:06:07]} 21. Qf3 {[%emt 0:07:17]} dxe3 {[%emt 0:09:52]} 22. fxe3 {[%emt 0:04:52]} Bb7 {[%emt 0:01:23]} 23. Qg3 {[%emt 0:00:39]} Rd8 {[%emt 0:01:14]} 24. O-O-O {[%emt 0:03:00]} Rxd3 {[%emt 0:09:19]} 25. Rxd3 {[%emt 0:01:08]} Be4 {[%emt 0:00:26]} 26. Rd8 {[%emt 0:04:08]} Bd5 {[%emt 0:02:32]} 27. Rd1 {[%emt 0:03:51]} Bxa2 {[%emt 0:01:34]} 28. e4 {[%emt 0:00:22]} Bb3 {[%emt 0:06:18]} 29. R1d7 {[%emt 0:00:55]} Qf8 {[%emt 0:00:03]} 30. Rxh7+ {[%emt 0:00:33]} Kxh7 {[%emt 0:01:44]} 31. Qh4+ {[%emt 0:00:07]} Kg7 {[%emt 0:00:17]} 32. Bh6+ {[%emt 0:00:06]} 1-0

[Event "34th MPL National U14G-ch 2022"]
[Site "Ahmedabad"]
[Date "2022.05.10"]
[Round "3.4"]
[White "Shubhi Gupta"]
[Black "Shriyana S Mallya"]
[Result "1-0"]
[ECO "D52"]
[WhiteElo "1613"]
[BlackElo "1353"]
[Annotator "NA RC COMBH"]
[PlyCount "111"]
[EventDate "2022.05.09"]
[EventType "swiss"]
[EventCountry "IND"]
[SourceTitle "playchess.com"]
[Source "ChessBase"]
[SourceQuality "1"]
[TimeControl "5400+30"]

1. d4 {[%emt 0:00:19]} d5 {[%emt 0:00:13]} 2. c4 {[%emt 0:00:07]} e6 {[%emt 0:00:18]} 3. Nc3 {[%emt 0:00:28]} Nf6 {[%emt 0:00:29]} 4. Bg5 {[%emt 0:00:36]} c6 {[%emt 0:00:23]} 5. Nf3 {[%emt 0:00:44]} Nbd7 {[%emt 0:00:36]} 6. e3 {[%emt 0:00:44]} Bd6 {[%emt 0:00:41]} 7. Rc1 {[%emt 0:00:30]} a6 {[%emt 0:01:38]} 8. Bd3 {[%emt 0:00:38]} dxc4 {[%emt 0:00:20]} 9. Bxc4 {[%emt 0:00:12]} b5 {[%emt 0:00:54]} 10. Bd3 {[%emt 0:00:16]} Bb7 {[%emt 0:00:35]} 11. O-O {[%emt 0:00:44]} h6 {[%emt 0:01:37]} 12. Bh4 {[%emt 0:00:15]} O-O {[%emt 0:00:40]} 13. Bb1 {[%emt 0:01:25]} Qb6 {[%emt 0:19:46]} 14. Qc2 {[%emt 0:03:12]} c5 {[%emt 0:05:57]} 15. Ne5 {[%emt 0:04:20]} Rfd8 {[%emt 0:04:51]} 16. Nxd7 {[%emt 0:04:37]} Rxd7 {[%emt 0:00:24]} 17. Bxf6 {[%emt 0:01:54]} gxf6 {[%emt 0:01:01]} 18. Qh7+ {[%emt 0:00:59]} Kf8 {[%emt 0:00:35]} 19. dxc5 {[%emt 0:03:40]} Bxc5 {[%emt 0:05:57]} 20. Be4 {[%emt 0:03:00]} Ke7 {[%emt 0:06:08]} 21. Rfd1 {[%emt 0:02:22]} Rad8 {[%emt 0:01:14]} 22. Rxd7+ {[%emt 0:00:56]} Rxd7 {[%emt 0:47:13]} 23. Bg6 {[%emt 0:01:42]} Ke8 {[%emt 0:00:00]} 24. Qg8+ {[%emt 0:02:02]} Bf8 {[%emt 0:00:00]} 25. Ne4 {[%emt 0:01:24]} e5 {[%emt 0:00:00]} 26. Bf5 {[%emt 0:01:41]} Rd8 {[%emt 0:00:00]} 27. Bg6 {[%emt 0:07:59]} fxg6 {[%emt 0:00:00]} 28. Qxg6+ {[%emt 0:00:52]} Ke7 {[%emt 0:00:00]} 29. Qh7+ {[%emt 0:07:35]} Ke6 {[%emt 0:00:00]} 30. Qg8+ {[%emt 0:01:22]} Kd7 {[%emt 0:00:00]} 31. Qf7+ {[%emt 0:01:05]} Be7 {[%emt 0:00:00]} 32. Nc5+ {[%emt 0:00:20]} Kc8 {[%emt 0:00:00]} 33. Na4+ {[%emt 0:03:11]} Qc6 {[%emt 0:00:00]} 34. Rxc6+ {[%emt 0:00:13]} Bxc6 {[%emt 0:00:00]} 35. h3 {[%emt 0:01:58]} Rd1+ {[%emt 0:00:00]} 36. Kh2 {[%emt 0:00:11]} Bd6 {[%emt 0:00:00]} 37. Nc3 {[%emt 0:02:23]} e4+ {[%emt 0:00:00]} 38. g3 {[%emt 0:00:18]} Rd2 {[%emt 0:00:00]} 39. Qxf6 {[%emt 0:00:11]} Kc7 {[%emt 0:00:00]} 40. Nxe4 {[%emt 0:00:34]} Rd1 {[%emt 0:00:00]} 41. f3 {[%emt 0:01:54]} Bxe4 {[%emt 0:00:00]} 42. fxe4 {[%emt 0:00:22]} Rd2+ {[%emt 0:00:00]} 43. Kg1 {[%emt 0:00:08]} Rd1+ {[%emt 0:00:00]} 44. Kf2 {[%emt 0:00:10]} h5 {[%emt 0:00:00]} 45. e5 {[%emt 0:00:42]} Rd2+ {[%emt 0:00:00]} 46. Kf1 {[%emt 0:03:05]} Bb4 {[%emt 0:00:00]} 47. e6 {[%emt 0:00:41]} Rd1+ {[%emt 0:00:00]} 48. Kg2 {[%emt 0:00:11]} Rd2+ {[%emt 0:00:00]} 49. Kf3 {[%emt 0:00:12]} Rd1 {[%emt 0:00:00]} 50. Ke4 {[%emt 0:00:15]} Re1 {[%emt 0:00:00]} 51. Qf7+ {[%emt 0:00:21]} Kb6 {[%emt 0:00:00]} 52. e7 {[%emt 0:00:16]} Bc5 {[%emt 0:00:00]} 53. e8=Q {[%emt 0:00:31]} Rxe3+ {[%emt 0:00:00]} 54. Kf4 {[%emt 0:00:06]} Rxe8 {[%emt 0:00:00]} 55. Qxe8 {[%emt 0:00:04]} Bd6+ {[%emt 0:00:00]} 56. Kf3 {[%emt 0:00:07]} 1-0